fUSD/lending_fUSD_20240201
["ID","MTS","AMOUNT","RATE_DAILY","PERIOD"]
[313120153,1706771437566,-738438.56672658,0.00023,2]
[313120154,1706771437576,-527982.30968164,0.00023,2]
[313120155,1706771437585,-176.8,0.00023096,2]
[313120156,1706771437595,-7898.41839423,0.0002313,2]
[313120157,1706771437604,-176.8,0.00023644,2]
[313120158,1706771437613,-151.85,0.00024008,2]
[313120159,1706771437622,-155.5244494,0.000241,2]
[313120160,1706771437632,-176.8,0.00024192,2]
[313120161,1706771437641,-13659.53389252,0.00024196,2]
[313120162,1706771437650,-322.47,0.00024406,2]
[313120163,1706771437659,-154.88740822,0.00024486,2]
[313120164,1706771437668,-232.14600768,0.0002474,2]
[313120165,1706771437677,-531.03560426,0.000249,2]
[313120166,1706771437687,-395.33308012,0.00025123,2]
[313120167,1706771437696,-1000.0,0.00025199,2]
[313120168,1706771437705,-13659.53389252,0.00025493,2]
[313120169,1706771437714,-154.88740822,0.00026042,2]
[313120170,1706771437723,-160.0,0.00026232,2]
[313120171,1706771437733,-172.48,0.00026245,2]
[313120172,1706771437742,-250.0,0.0002631,2]
[313120173,1706771437751,-703.51,0.00026335,2]
[313120174,1706771437761,-157.56932941,0.00026369,2]
[313120175,1706771437770,-150.0,0.00026383,2]
[313120176,1706771437779,-3291.91856165,0.000264,2]
[313120177,1706771437788,-1140.0,0.0002645,2]
[313120178,1706771437797,-322.47,0.0002667,2]
[313120179,1706771437806,-13659.53389252,0.00026789,2]
[313120180,1706771437815,-531.03560426,0.000269,3]
[313120181,1706771437824,-395.33308012,0.00027345,2]
[313120182,1706771437834,-155.0,0.00027397,2]
[313120183,1706771437843,-1133.09519763,0.000274,2]
[313120184,1706771437853,-500.0,0.000274,2]
[313120185,1706771437862,-186.18995355,0.000275,2]
[313120186,1706771437871,-12946.66436041,0.000275,2]
[313120187,1706771437881,-172.48,0.00027557,2]
[313120188,1706771437890,-154.88740822,0.00027598,2]
[313120189,1706771437899,-286.44,0.00027629,2]
[313120190,1706771437908,-359.57426793,0.00027874,2]
[313120191,1706771437917,-703.51,0.00027979,2]
[313120192,1706771437926,-290.40617084,0.00028,2]
[313120193,1706771437936,-13659.53389252,0.00028085,2]
[313120194,1706771437946,-840.0,0.00028163,2]
[313120195,1706771437955,-2766.0,0.000285,2]
[313120196,1706771437964,-5040.0,0.000286,2]
[313120197,1706771437974,-155.0,0.00028767,2]
[313120198,1706771437984,-836.74,0.00028775,2]
[313120199,1706771437994,-10032.52811015,0.00028827,2]
[313120200,1706771438003,-172.48,0.00028869,2]
[313120201,1706771438013,-193.72,0.0002888,2]
[313120202,1706771438026,-531.03560426,0.000289,4]
[313120203,1706771438035,-322.47,0.00028934,2]
[313120204,1706771438045,-150.0,0.000291,2]
[313120205,1706771438054,-154.88740822,0.00029154,2]
[313120206,1706771438063,-13659.53389252,0.00029382,2]
[313120207,1706771438073,-160.0,0.00029511,2]
[313120208,1706771438082,-395.33308012,0.00029568,2]
[313120209,1706771438091,-703.51,0.00029623,2]
[313120210,1706771438101,-71499.6642389,0.000299,2]
[313120212,1706771438111,-1400.0,0.000299,10]
[313120214,1706771438120,-193.72,0.00029901,2]
[313120216,1706771438130,-10000.0,0.00029955,2]
[313120218,1706771438139,-312.61532307,0.0003,2]
[313120219,1706771438149,-500.0,0.0003,2]
[313120221,1706771438158,-157.56932941,0.00030037,2]
[313120223,1706771438167,-217.3658437,0.00030037,2]
[313120225,1706771438176,-2071.41306354,0.00030037,2]
[313120227,1706771438185,-358.94490727,0.00030037,2]
[313120229,1706771438194,-154391.34541607,0.000301,2]
[313120231,1706771438204,-153.87,0.00030137,2]
[313120233,1706771438213,-172.48,0.00030181,2]
[313120235,1706771438222,-208.0,0.00030637,2]
[313120237,1706771438231,-13659.53389252,0.00030678,2]
[313120239,1706771438240,-150.0,0.00030685,2]
[313120241,1706771438250,-150.0,0.00030685,2]
[313120243,1706771438259,-150.0,0.00030685,2]
[313120245,1706771438268,-150.0,0.00030685,2]
[313120247,1706771438277,-150.0,0.00030685,2]
[313120249,1706771438286,-150.0,0.00030685,2]
[313120251,1706771438296,-154.88740822,0.0003071,2]
[313120253,1706771438305,-15756.30706396,0.000309,2]
[313120256,1706771438326,-208.0126325,0.000309,2]
[313120258,1706771438335,-531.03560426,0.000309,5]
[313120260,1706771438344,-193.72,0.00030922,2]
[313120262,1706771438353,-153.87,0.0003098,2]
[313120264,1706771438363,-226.73196236,0.00031,2]
[313120266,1706771438372,-665.4835185,0.00031,2]
[313120269,1706771438384,-606.88855327,0.00031,2]
[313120277,1706771438453,-362.33147767,0.00031,2]
[313120345,1706771440221,-721.93772049,0.00031,2]
[313120346,1706771440233,-521.43643421,0.00031,2]
[313120347,1706771440940,-1383.42159617,0.00031,2]
[313120348,1706771441001,-2307.13447873,0.00031,2]
[313120349,1706771441013,-1062.97642952,0.00031,2]
[313120350,1706771441024,-208.63894956,0.00031,5]
[313120351,1706771441035,-266.14804514,0.00031,2]
[313120352,1706771441048,-104.92231529,0.00031,2]
[313120353,1706771441057,-720.35768471,0.00031,2]
[313120354,1706771441069,-630.64231529,0.00031,2]
[313120355,1706771441078,-125.48868471,0.0003115,14]
[313120356,1706771441090,-315.6,0.0003115,14]
[313120358,1706771444122,-811.44,0.0003115,14]
[313120359,1706771444232,-456.09,0.0003115,14]
[313120360,1706771444290,-1050.0,0.0003115,14]
[313120361,1706771444347,-1278.61587429,0.0003115,14]
[313120362,1706771444359,-3913.78094294,0.0003115,14]
[313120363,1706771444369,-150.0,0.00031178,2]
[313120364,1706771444379,-150.0,0.00031178,2]
[313120365,1706771444389,-322.47,0.00031198,2]
[313120366,1706771444397,-703.51,0.00031266,2]
[313120367,1706771444407,-1208.88436434,0.00031348,2]
[313120368,1706771444418,-158.80447005,0.000314,30]
[313120369,1706771444428,-172.48,0.00031493,2]
[313120370,1706771444437,-1000.0,0.000315,2]
[313120371,1706771444447,-1138.26,0.0003155,10]
[313120372,1706771444456,-431.96095718,0.00031558,2]
[313120374,1706771444465,-727.59032262,0.0003156,2]
[313120396,1706771445815,-4249.38179999,0.0003156,2]
[313120398,1706772038115,448.03455285,0.000312,120]
[313120406,1706772631728,-250.0,0.00027389,2]
[313120409,1706772631841,-272.58129086,0.00027389,2]
[313120410,1706772631850,-280.11299096,0.0002739,2]
[313120411,1706772631860,-27.76575738,0.00027397,2]
[313120412,1706772631901,-189.77424262,0.00027397,2]
[313120413,1706772631911,-851.56088838,0.000274,2]
[313120414,1706772631921,-78.98979277,0.00028,2]
[313120415,1706772631933,-211.41637807,0.00028,2]
[313120416,1706772631942,-257.97,0.00028234,2]
[313120417,1706772631951,-1785.13977888,0.00029999,2]
[313120418,1706772631961,-234.5,0.00030048,2]
[313120419,1706772631971,-250.0,0.00030056,2]
[313120420,1706772631981,-499.99,0.00030099,2]
[313120421,1706772631990,-3824.60595909,0.00030132,2]
[313120422,1706772632002,-3358.67127474,0.00030132,2]
[313120423,1706772632018,-1032.05682951,0.00030132,2]
[313120424,1706772632029,-13915.24676399,0.00030132,2]
[313120426,1706772638008,-172.53,0.00030133,2]
[313120427,1706772638018,-950.0,0.00030176,2]
[313120428,1706772638027,-150.0,0.000302,2]
[313120429,1706772638037,-178.84,0.00030208,2]
[313120430,1706772638046,-1000.0,0.00030253,2]
[313120431,1706772638055,-150.0,0.00030456,2]
[313120432,1706772638065,-257.97,0.00030498,2]
[313120433,1706772638074,-697.28,0.0003064,2]
[313120434,1706772638083,-168.55,0.00031137,2]
[313120435,1706772638093,-397.23112656,0.000312,14]
[313120436,1706772638102,-500.0,0.000312,2]
[313120437,1706772638111,-27.59887344,0.000312,2]
[313120438,1706772638132,-1645.05539903,0.000312,2]
[313120460,1706772640345,-3961.03249474,0.000312,2]
[313120461,1706772640355,-208.0,0.00031308,2]
[313120462,1706772640365,-150.0,0.00031331,2]
[313120463,1706772640374,-680.67,0.00031353,10]
[313120464,1706772640385,-1062.76,0.00031353,10]
[313120465,1706772640394,-115529.99221107,0.00031363,2]
[313120466,1706772640557,-768.79825613,0.00031363,2]
[313120495,1706772642809,-2215.31735484,0.00031363,2]
[313120496,1706772642980,-3525.11507072,0.00031363,2]
[313120499,1706772645940,-263.04335995,0.00031362,4]
[313120500,1706772645952,-285.5717796,0.00031362,4]
[313120501,1706772645961,-179.59955754,0.00031362,4]
[313120502,1706772645973,-103.67712123,0.00031362,4]
[313120503,1706772645982,-13708.059638,0.00031363,2]
[313120504,1706772645998,-1701.3480908,0.00031363,2]
[313120505,1706772646010,-574.14456829,0.00031363,2]
[313120506,1706772646022,-6958.97269376,0.00031363,2]
[313120507,1706772646033,-37385.36750133,0.00031363,2]
[313120508,1706772646088,-408.94739987,0.00031363,2]
[313120509,1706772646200,-504.04605574,0.00031363,2]
[313120512,1706773831908,-419.32669066,0.00027194,2]
[313120513,1706773831918,-282.21611749,0.00027195,2]
[313120514,1706773831928,-315.18305531,0.00027195,2]
[313120516,1706773831938,-1194.15549876,0.00027199,2]
[313120517,1706773831949,-1363.6628221,0.00027199,2]
[313120518,1706773831961,-418.98217914,0.00027199,2]
[313120519,1706773831972,-89.49744199,0.00027299,2]
[313120520,1706773831990,-804.42570392,0.00027299,2]
[313120521,1706773832133,-409.96149532,0.00027299,2]
[313120522,1706773832145,-3209.54854322,0.00027299,2]
[313120523,1706773832191,-1871.95313342,0.00027299,2]
[313120524,1706773832200,-290.40617084,0.00028,2]
[313120525,1706773832209,-244.94,0.00028051,2]
[313120526,1706773832218,-178.84,0.00029914,2]
[313120527,1706773832227,-724.9082528,0.00029923,2]
[313120528,1706773832239,-66.7517472,0.00029923,2]
[313120529,1706773832249,-150.0,0.00029976,2]
[313120530,1706773832258,-250.0,0.00030091,2]
[313120531,1706773832268,-195.41,0.00030102,2]
[313120532,1706773832278,-499.99,0.00030102,2]
[313120533,1706773832288,-8175.12633525,0.00030153,4]
[313120534,1706773832297,-1000.0,0.00030154,2]
[313120535,1706773832306,-244.94,0.00030315,2]
[313120536,1706773832316,-581.06,0.00030353,2]
[313120537,1706773832325,-426.03623403,0.00030685,14]
[313120538,1706773832334,-410.03,0.00030685,2]
[313120539,1706773832343,-341.38,0.00030685,2]
[313120540,1706773832353,-416.77,0.00030685,2]
[313120541,1706773832362,-416.77,0.00030685,2]
[313120542,1706773832371,-341.38,0.00030685,2]
[313120543,1706773832381,-416.77,0.00030685,2]
[313120544,1706773832390,-341.38,0.00030685,2]
[313120545,1706773832399,-341.38,0.00030685,2]
[313120546,1706773832409,-416.77,0.00030685,2]
[313120547,1706773832419,-420.05,0.00030685,2]
[313120548,1706773832429,-416.77,0.00030685,2]
[313120549,1706773832440,-341.38,0.00030685,2]
[313120550,1706773832450,-420.05,0.00030685,2]
[313120551,1706773832459,-416.77,0.00030685,2]
[313120552,1706773832470,-420.05,0.00030685,2]
[313120553,1706773832480,-341.38,0.00030685,2]
[313120554,1706773832490,-420.05,0.00030685,2]
[313120555,1706773832499,-420.05,0.00030685,2]
[313120556,1706773832509,-341.38,0.00030685,2]
[313120557,1706773832518,-420.25,0.00030685,2]
[313120558,1706773832528,-224.92,0.00030685,2]
[313120559,1706773832537,-711.42,0.00030685,2]
[313120560,1706773832546,-416.77,0.00030685,2]
[313120561,1706773832556,-937.27,0.00030685,2]
[313120562,1706773832567,-420.05,0.000307,2]
[313120563,1706773832576,-341.38,0.000307,2]
[313120564,1706773832586,-416.77,0.000307,2]
[313120565,1706773832595,-1393.9763937,0.00030702,2]
[313120566,1706773832606,-410.03,0.000308,2]
[313120567,1706773832615,-341.38,0.000308,2]
[313120568,1706773832624,-416.77,0.000308,2]
[313120569,1706773832634,-150.0,0.000308,2]
[313120570,1706773832644,-250.0,0.0003089,2]
[313120571,1706773832654,-208.0,0.00030894,2]
[313120572,1706773832663,-172.75,0.00031005,2]
[313120573,1706773832673,-8050.69838315,0.00031057,4]
[313120574,1706773832683,-434.9833,0.00031149,2]
[313120575,1706773832692,-1632.8654,0.0003115,2]
[313120576,1706773832701,-1000.0,0.0003115,2]
[313120577,1706773832712,-241.0479,0.0003115,2]
[313120578,1706773832722,-32170.4995,0.0003115,2]
[313120579,1706773832733,-500.0,0.0003115,2]
[313120580,1706773832746,-250.0,0.00031164,2]
[313120581,1706773832757,-1208.8843643,0.00031215,2]
[313120582,1706773832766,-1393.9763937,0.00031225,2]
[313120583,1706773832776,-370.27627976,0.00031238,5]
[313120584,1706773832786,-529.70486808,0.0003124,2]
[313120585,1706773832796,-1000.0,0.00031242,2]
[313120586,1706773832808,-35189.0,0.00031243,2]
[313120587,1706773832818,-201.29238177,0.00031247,4]
[313120588,1706773832828,-157.53514651,0.00031247,4]
[313120589,1706773832838,-221.95046017,0.00031247,4]
[313120590,1706773832848,-1441.5666125,0.00031247,2]
[313120591,1706773832859,-164.3107796,0.00031248,4]
[313120592,1706773832869,-1080.74610418,0.00031248,4]
[313120593,1706773832879,-941.46518137,0.00031248,4]
[313120594,1706773832889,-235.11918748,0.00031248,4]
[313120595,1706773832900,-545.59327966,0.00031248,4]
[313120596,1706773832909,-279.88780465,0.00031248,4]
[313120597,1706773832918,-156.85887799,0.00031248,4]
[313120598,1706773832929,-1719.10503118,0.00031248,4]
[313120599,1706773832943,-161.91178269,0.00031248,4]
[313120600,1706773832952,-212.55716275,0.00031248,4]
[313120601,1706773832963,-156.37056937,0.00031248,4]
[313120602,1706773832972,-42604.4901371,0.00031248,2]
[313120603,1706773832986,-16016.14720052,0.00031248,2]
[313120604,1706773832996,-500.0,0.00031248,2]
[313120605,1706773833007,-500.0,0.00031248,2]
[313120606,1706773833016,-156.36812441,0.00031249,4]
[313120607,1706773833216,-8275.91576098,0.00031249,4]
[313120608,1706773833228,-290.21949743,0.00031249,4]
[313120609,1706773833238,-2108.38001666,0.00031249,4]
[313120610,1706773833251,-21835.46295795,0.00031249,4]
[313120611,1706773833261,-1467.02299146,0.00031249,4]
[313120612,1706773833271,-500.0,0.00031249,2]
[313120613,1706773833281,-1415.94,0.00031249,5]
[313120614,1706773833290,-500.0,0.00031249,2]
[313120615,1706773833300,-1304.2,0.00031249,2]
[313120616,1706773833309,-846.79,0.00031249,2]
[313120617,1706773833318,-500.0,0.00031249,2]
[313120618,1706773833328,-2809.78,0.00031249,2]
[313120619,1706773833338,-1168.9,0.00031249,2]
[313120620,1706773833348,-500.0,0.00031249,2]
[313120621,1706773833357,-744.74,0.00031249,2]
[313120622,1706773833366,-500.0,0.00031249,2]
[313120623,1706773833377,-500.0,0.00031249,2]
[313120624,1706773833386,-500.0,0.00031249,2]
[313120625,1706773833395,-1478.86,0.00031249,2]
[313120626,1706773833405,-500.0,0.00031249,2]
[313120627,1706773833414,-983.72,0.00031249,2]
[313120628,1706773833424,-745.35,0.00031249,2]
[313120629,1706773833436,-607.11,0.00031249,2]
[313120630,1706773833446,-500.0,0.00031249,2]
[313120631,1706773833456,-637.39,0.00031249,2]
[313120632,1706773833467,-707.42,0.00031249,2]
[313120633,1706773833477,-1137.91,0.00031249,2]
[313120634,1706773833487,-926.86,0.00031249,2]
[313120635,1706773833498,-500.0,0.00031249,2]
[313120636,1706773833507,-500.0,0.00031249,2]
[313120637,1706773833517,-1738.22,0.00031249,2]
[313120638,1706773833526,-2982.21,0.00031249,2]
[313120639,1706773833535,-500.0,0.00031249,2]
[313120640,1706773833544,-1292.32,0.00031249,2]
[313120641,1706773833554,-1300.69,0.00031249,2]
[313120642,1706773833563,-1061.95,0.00031249,2]
[313120643,1706773833572,-632.43,0.00031249,2]
[313120644,1706773833581,-1666.75,0.00031249,2]
[313120645,1706773833591,-500.0,0.00031249,2]
[313120646,1706773833600,-500.0,0.00031249,2]
[313120647,1706773833609,-749.84,0.00031249,2]
[313120648,1706773833619,-500.0,0.00031249,2]
[313120649,1706773833628,-500.0,0.00031249,2]
[313120650,1706773833637,-2421.05,0.00031249,2]
[313120651,1706773833648,-1565.23,0.00031249,2]
[313120652,1706773833657,-627.4,0.00031249,2]
[313120653,1706773833666,-500.0,0.00031249,2]
[313120654,1706773833677,-500.0,0.00031249,2]
[313120655,1706773833686,-500.0,0.00031249,2]
[313120656,1706773833696,-1636.7,0.00031249,2]
[313120657,1706773833706,-500.0,0.00031249,2]
[313120658,1706773833715,-500.0,0.00031249,2]
[313120659,1706773833724,-500.0,0.00031249,2]
[313120660,1706773833734,-747.18,0.00031249,2]
[313120661,1706773833745,-500.0,0.00031249,2]
[313120662,1706773833757,-500.0,0.00031249,2]
[313120663,1706773833766,-811.35,0.00031249,2]
[313120664,1706773833776,-500.0,0.00031249,2]
[313120665,1706773833785,-946.72,0.00031249,2]
[313120666,1706773833794,-41348.71479959,0.0003125,2]
[313120667,1706773833809,-78837.05560708,0.0003125,2]
[313120668,1706773833820,-425.17224003,0.0003125,2]
[313120669,1706773833834,-399.90157605,0.0003125,2]
[313120670,1706773833846,-616.35924009,0.0003125,2]
[313120688,1706773837932,-500.0,0.00031248,2]
[313120691,1706773837941,-649.53041513,0.00031248,2]
[313120699,1706773837989,-55.30958487,0.00031248,2]
[313120700,1706773837998,-384.83810566,0.00031249,2]
[313120701,1706773838007,-849.8,0.00031249,2]
[313120702,1706773838016,-888.51930247,0.00031249,5]
[313120703,1706773838153,-280.22179706,0.00031249,5]
[313120704,1706773838211,-188.19890047,0.00031249,5]
[313120705,1706773838219,-550.55,0.00031249,2]
[313120706,1706773838229,-4853.54818882,0.0003125,2]
[313120707,1706773838238,-2886.7104917,0.000313,2]
[313121068,1706773843395,-652.20937819,0.000313,2]
[313121069,1706773843407,-411.7493109,0.000313,2]
[313121070,1706773843454,-614.29174979,0.000313,2]
[313121071,1706773843508,-406.1815225,0.00031248,2]
[313121072,1706773843520,-93.8184775,0.00031248,2]
[313121073,1706773843529,-951.65233812,0.000313,2]
[313121074,1706773843678,-4483.3867313,0.000313,2]
[313121075,1706773843689,-210.96951609,0.00031338,2]
[313121076,1706773843698,-205.36347833,0.00031338,4]
[313121077,1706773843708,-150.0,0.00031348,2]
[313121078,1706773843717,-592.07027428,0.00031352,10]
[313121079,1706773843737,-293.55972572,0.00031352,10]
[313121080,1706773843751,-500.0,0.0003136,2]
[313121081,1706773843761,-600.18,0.0003136,2]
[313121082,1706773843770,-629.39,0.0003136,2]
[313121083,1706773843779,-500.0,0.0003136,2]
[313121084,1706773843789,-500.0,0.0003136,2]
[313121085,1706773843798,-708.54,0.0003136,2]
[313121086,1706773843808,-626.72,0.0003136,2]
[313121087,1706773843817,-757.94,0.0003136,2]
[313121088,1706773843829,-534.49,0.0003136,2]
[313121089,1706773843840,-1163.86,0.0003136,2]
[313121090,1706773843849,-684.41,0.0003136,2]
[313121091,1706773843859,-500.0,0.0003136,2]
[313121092,1706773843868,-500.0,0.0003136,2]
[313121093,1706773843878,-1375.11,0.0003136,2]
[313121094,1706773843888,-595.11,0.0003136,2]
[313121095,1706773843898,-811.5,0.0003136,2]
[313121096,1706773843908,-523.05523664,0.00031361,2]
[313121097,1706773843917,-523.08164024,0.00031361,2]
[313121098,1706773843926,-500.0,0.00031361,2]
[313121099,1706773843935,-921.16,0.00031361,2]
[313121100,1706773843946,-624.29601936,0.00031361,2]
[313121101,1706773843957,-519.15267544,0.00031361,2]
[313121102,1706773843967,-500.0,0.00031361,2]
[313121103,1706773843977,-507.8628672,0.00031361,2]
[313121104,1706773843987,-500.0,0.00031361,2]
[313121105,1706773843996,-500.0,0.00031361,2]
[313121106,1706773844006,-500.0,0.00031361,2]
[313121107,1706773844017,-500.0,0.00031361,2]
[313121108,1706773844027,-535.03834451,0.00031361,2]
[313121109,1706773844038,-500.0,0.00031361,2]
[313121110,1706773844047,-500.0,0.00031361,2]
[313121111,1706773844056,-535.08176773,0.00031361,2]
[313121112,1706773844065,-500.0,0.00031361,20]
[313121113,1706773844074,-884.06,0.00031361,2]
[313121114,1706773844082,-500.0,0.00031361,2]
[313121115,1706773844091,-236.39493764,0.00031361,2]
[313121116,1706773844100,-528.75668559,0.00031361,2]
[313121117,1706773844109,-500.0,0.00031361,2]
[313121118,1706773844118,-500.0,0.00031361,2]
[313121119,1706773844127,-500.0,0.00031361,2]
[313121120,1706773844136,-542.37631364,0.00031361,2]
[313121121,1706773844146,-595.54045968,0.00031361,2]
[313121122,1706773844155,-525.26176757,0.00031361,2]
[313121123,1706773844163,-500.0,0.00031361,2]
[313121127,1706773844354,-500.0,0.00031361,2]
[313121128,1706773844365,-500.0,0.00031361,2]
[313121129,1706773844375,-500.0,0.00031361,2]
[313121130,1706773844383,-500.0,0.00031361,2]
[313121131,1706773844393,-3640.7371751,0.00031361,4]
[313121132,1706773844404,-1263.07801058,0.00031361,4]
[313121133,1706773844412,-500.0,0.00031362,2]
[313121134,1706773844422,-500.0,0.00031362,2]
[313121135,1706773844432,-554.12567296,0.00031362,2]
[313121136,1706773844442,-509.28389314,0.00031362,2]
[313121137,1706773844451,-688.05,0.00031362,2]
[313121138,1706773844461,-552.66856171,0.00031362,2]
[313121139,1706773844471,-500.0,0.00031362,2]
[313121140,1706773844481,-500.0,0.00031362,2]
[313121141,1706773844491,-500.0,0.00031362,2]
[313121142,1706773844501,-1037.15,0.00031362,7]
[313121143,1706773844511,-428.86112404,0.00031362,2]
[313121144,1706773844521,-500.0,0.00031362,2]
[313121145,1706773844531,-535.74362496,0.00031362,2]
[313121146,1706773844542,-500.0,0.00031362,2]
[313121147,1706773844552,-496.26189021,0.00031362,2]
[313121148,1706773844561,-500.0,0.00031362,2]
[313121149,1706773844570,-500.0,0.00031362,2]
[313121150,1706773844580,-500.0,0.00031362,2]
[313121151,1706773844589,-500.0,0.00031362,2]
[313121152,1706773844599,-500.02890067,0.00031362,2]
[313121153,1706773844608,-500.0,0.00031362,2]
[313121154,1706773844617,-486.80457796,0.00031362,2]
[313121155,1706773844627,-500.0,0.00031362,2]
[313121156,1706773844636,-500.0,0.00031362,2]
[313121157,1706773844645,-500.0,0.00031362,2]
[313121158,1706773844655,-500.0,0.00031362,2]
[313121159,1706773844665,-500.0,0.00031362,2]
[313121160,1706773844676,-500.0,0.00031362,2]
[313121161,1706773844686,-500.0,0.00031362,2]
[313121162,1706773844696,-500.0,0.00031362,2]
[313121163,1706773844706,-500.0,0.00031362,2]
[313121164,1706773844715,-500.0,0.00031362,2]
[313121165,1706773844725,-294.2,0.00031362,2]
[313121166,1706773844733,-500.0,0.00031362,2]
[313121167,1706773844743,-500.0,0.00031362,2]
[313121168,1706773844755,-552.42,0.00031362,2]
[313121169,1706773844765,-500.0,0.00031362,2]
[313121170,1706773844773,-398.54058939,0.00031362,2]
[313121171,1706773844787,-101.45941061,0.00031362,2]
[313121172,1706773844797,-500.0,0.00031362,2]
[313121173,1706773844806,-500.0,0.00031362,2]
[313121174,1706773844815,-500.0,0.00031362,2]
[313121175,1706773844826,-500.0,0.00031362,2]
[313121176,1706773844835,-500.0,0.00031362,2]
[313121177,1706773844844,-405.38801918,0.00031362,2]
[313121178,1706773844905,-94.61198082,0.00031362,2]
[313121179,1706773844915,-210.0496212,0.00031362,2]
[313121180,1706773844925,-500.0,0.00031362,2]
[313121181,1706773844934,-500.0,0.00031362,2]
[313121182,1706773844943,-402.53790379,0.00031362,2]
[313121183,1706773844954,-97.46209621,0.00031362,2]
[313121184,1706773844963,-500.0,0.00031362,2]
[313121185,1706773844972,-500.0,0.00031362,2]
[313121186,1706773844982,-500.0,0.00031362,2]
[313121187,1706773844993,-150.96101897,0.00031362,2]
[313121188,1706773845005,-349.03898103,0.00031362,2]
[313121189,1706773845014,-48.48101897,0.00031362,2]
[313121190,1706773845135,-273.48492483,0.00031362,2]
[313121192,1706773846002,-178.0340562,0.00031362,2]
[313121193,1706773846013,-500.0,0.00031362,2]
[313121194,1706773846023,-500.0,0.00031362,2]
[313121195,1706773846034,-500.0,0.00031362,2]
[313121196,1706773846045,-500.0,0.00031362,2]
[313121197,1706773846053,-500.0,0.00031362,2]
[313121198,1706773846063,-41.72060847,0.00031362,2]
[313121199,1706773846093,-458.27939153,0.00031362,2]
[313121200,1706773846102,-1268.96,0.00031362,2]
[313121201,1706773846111,-534.47,0.00031362,2]
[313121202,1706773846120,-500.0,0.00031362,2]
[313121203,1706773846130,-500.0,0.00031362,2]
[313121204,1706773846140,-526.78320603,0.00031362,2]
[313121205,1706773846151,-898.9,0.00031362,2]
[313121206,1706773846160,-500.0,0.00031362,2]
[313121207,1706773846170,-500.0,0.00031362,2]
[313121208,1706773846180,-500.0,0.00031362,2]
[313121209,1706773846190,-1297.72,0.00031362,2]
[313121210,1706773846200,-500.0,0.00031362,2]
[313121211,1706773846210,-646.44,0.00031362,2]
[313121212,1706773846219,-500.0,0.00031362,2]
[313121213,1706773846227,-500.0,0.00031362,2]
[313121214,1706773846236,-500.0,0.00031362,2]
[313121215,1706773846247,-3735.25,0.00031362,2]
[313121216,1706773846256,-500.0,0.00031362,2]
[313121217,1706773846266,-346.79644933,0.00031362,2]
[313121218,1706773846337,-153.20355067,0.00031362,2]
[313121219,1706773846348,-123.70203735,0.00031362,2]
[313121220,1706773846409,-500.0,0.00031249,2]
[313121221,1706773846418,-376.29796265,0.00031362,2]
[313121222,1706773846427,-500.0,0.00031362,2]
[313121223,1706773846438,-500.0,0.00031362,2]
[313121224,1706773846447,-500.0,0.00031362,2]
[313121225,1706773846458,-141.4814851,0.00031362,2]
[313121226,1706773847879,-411.06267295,0.00031361,4]
[313121227,1706773847891,-8.20427894,0.00031361,4]
[313121228,1706773847900,-302.3718739,0.00031361,4]
[313121229,1706773847909,-595.42416536,0.00031362,14]
[313121230,1706773847919,-645.8585149,0.00031362,2]
[313121231,1706773847928,-408.03267352,0.00031362,2]
[313121232,1706773847940,-91.96732648,0.00031362,2]
[313121233,1706773847949,-1061.78,0.00031362,2]
[313121234,1706773847958,-500.0,0.00031362,2]